{"text_format":"2","workbook":"xlsx","n_sheets":2,"sheets":["Zeitplan","Vorgangsliste"],"not_rendered":{"charts":0,"images":0,"macros":0,"external_links":0,"defined_names":0,"comments":0,"pivot_tables":0},"unopened":[],"bounds":{"document_bytes":16777216,"sheet_cells":100000,"run_cost":"one","rows_first":2000,"rows_last":500,"rows_between":2000,"halvings":0,"cell_chars":16384,"cell_head_chars":4096},"cells_cut":0,"cells_raw":0,"read":"whole","date_system":"1900"}

{"sheet":"Zeitplan","index":0,"n_rows":27,"n_cols":62,"rows_kept":27,"cut":false,"hidden":false,"merged":[[1,3,1,4],[1,5,1,6],[1,7,1,8],[0,0,1,0],[0,1,1,1],[0,2,1,2],[1,29,1,30],[1,31,1,32],[1,15,1,16],[1,17,1,18],[1,19,1,20],[1,21,1,22],[1,43,1,44],[0,3,0,8],[0,9,0,14],[0,15,0,20],[0,21,0,26],[0,27,0,32],[0,33,0,38],[0,39,0,44],[1,33,1,34],[1,35,1,36],[1,37,1,38],[1,39,1,40],[1,41,1,42],[1,23,1,24],[1,25,1,26],[1,27,1,28],[0,57,0,62],[1,57,1,58],[1,59,1,60],[1,61,1,62],[0,45,0,50],[1,45,1,46],[1,47,1,48],[1,49,1,50],[0,51,0,56],[1,51,1,52],[1,53,1,54],[1,55,1,56]]}
["Vorgänge","Stunden","Vorgänger","2019-05-08",{"$nulls":5},"2019-05-15",{"$nulls":5},"2019-05-22",{"$nulls":5},"2019-05-29",{"$nulls":5},"2019-06-05",{"$nulls":5},"2019-06-12",{"$nulls":5},"2019-06-19",{"$nulls":5},"2019-06-26",{"$nulls":5},"2019-07-03",{"$nulls":5},"2019-07-10"]
[null,null,null,1,null,2,null,3,null,1,null,2,null,3,null,1,null,2,null,3,null,1,null,2,null,3,null,1,null,2,null,3,null,1,null,2,null,3,null,1,null,2,null,3,null,1,null,2,null,3,null,1,null,2,null,3,null,1,null,2,null,3]
[{"$f":"IF(Vorgangsliste!$B2<>0,Vorgangsliste!$B2,\"\")","v":"Kick Off"},{"$f":"IF(Vorgangsliste!$C2<>0,Vorgangsliste!$C2,\"\")","v":1},{"$f":"IF(Vorgangsliste!$D2<>0,Vorgangsliste!$D2,\"\")","v":"-"}]
[{"$f":"IF(Vorgangsliste!$B3<>0,Vorgangsliste!$B3,\"\")","v":"Kommunikationsplan erstellen"},{"$f":"IF(Vorgangsliste!$C3<>0,Vorgangsliste!$C3,\"\")","v":1},{"$f":"IF(Vorgangsliste!$D3<>0,Vorgangsliste!$D3,\"\")","v":1}]
[{"$f":"IF(Vorgangsliste!$B4<>0,Vorgangsliste!$B4,\"\")","v":"Ziele setzen"},{"$f":"IF(Vorgangsliste!$C4<>0,Vorgangsliste!$C4,\"\")","v":2},{"$f":"IF(Vorgangsliste!$D4<>0,Vorgangsliste!$D4,\"\")","v":1}]
[{"$f":"IF(Vorgangsliste!$B5<>0,Vorgangsliste!$B5,\"\")","v":"Rollen verteilen"},{"$f":"IF(Vorgangsliste!$C5<>0,Vorgangsliste!$C5,\"\")","v":1},{"$f":"IF(Vorgangsliste!$D5<>0,Vorgangsliste!$D5,\"\")","v":1}]
[{"$f":"IF(Vorgangsliste!$B6<>0,Vorgangsliste!$B6,\"\")","v":"Mindmap erstellen"},{"$f":"IF(Vorgangsliste!$C6<>0,Vorgangsliste!$C6,\"\")","v":2},{"$f":"IF(Vorgangsliste!$D6<>0,Vorgangsliste!$D6,\"\")","v":1}]
[{"$f":"IF(Vorgangsliste!$B7<>0,Vorgangsliste!$B7,\"\")","v":"Fragenkatalog erstellen"},{"$f":"IF(Vorgangsliste!$C7<>0,Vorgangsliste!$C7,\"\")","v":6},{"$f":"IF(Vorgangsliste!$D7<>0,Vorgangsliste!$D7,\"\")","v":"2,3,4,5"}]
[{"$f":"IF(Vorgangsliste!$B8<>0,Vorgangsliste!$B8,\"\")","v":"Infrastrukturanforderungen definieren"},{"$f":"IF(Vorgangsliste!$C8<>0,Vorgangsliste!$C8,\"\")","v":1},{"$f":"IF(Vorgangsliste!$D8<>0,Vorgangsliste!$D8,\"\")","v":"2,3,4,5"}]
[{"$f":"IF(Vorgangsliste!$B9<>0,Vorgangsliste!$B9,\"\")","v":"Zeitplan erstellen"},{"$f":"IF(Vorgangsliste!$C9<>0,Vorgangsliste!$C9,\"\")","v":12},{"$f":"IF(Vorgangsliste!$D9<>0,Vorgangsliste!$D9,\"\")","v":"2,3,4"}]
[{"$f":"IF(Vorgangsliste!$B10<>0,Vorgangsliste!$B10,\"\")","v":"Analyse der zuverwendeten Techniken"},{"$f":"IF(Vorgangsliste!$C10<>0,Vorgangsliste!$C10,\"\")","v":1},{"$f":"IF(Vorgangsliste!$D10<>0,Vorgangsliste!$D10,\"\")","v":"3,5,7"}]
[{"$f":"IF(Vorgangsliste!$B11<>0,Vorgangsliste!$B11,\"\")","v":"Schnittstellen definieren"},{"$f":"IF(Vorgangsliste!$C11<>0,Vorgangsliste!$C11,\"\")","v":4},{"$f":"IF(Vorgangsliste!$D11<>0,Vorgangsliste!$D11,\"\")","v":5.7}]
[{"$f":"IF(Vorgangsliste!$B12<>0,Vorgangsliste!$B12,\"\")","v":"Resourceplan erstellen"},{"$f":"IF(Vorgangsliste!$C12<>0,Vorgangsliste!$C12,\"\")","v":2},{"$f":"IF(Vorgangsliste!$D12<>0,Vorgangsliste!$D12,\"\")","v":8}]
[{"$f":"IF(Vorgangsliste!$B13<>0,Vorgangsliste!$B13,\"\")","v":"ERD erstellen"},{"$f":"IF(Vorgangsliste!$C13<>0,Vorgangsliste!$C13,\"\")","v":6},{"$f":"IF(Vorgangsliste!$D13<>0,Vorgangsliste!$D13,\"\")","v":"6,10"}]
[{"$f":"IF(Vorgangsliste!$B14<>0,Vorgangsliste!$B14,\"\")","v":"Use-Case erstellen"},{"$f":"IF(Vorgangsliste!$C14<>0,Vorgangsliste!$C14,\"\")","v":2},{"$f":"IF(Vorgangsliste!$D14<>0,Vorgangsliste!$D14,\"\")","v":"12"}]
[{"$f":"IF(Vorgangsliste!$B15<>0,Vorgangsliste!$B15,\"\")","v":"Pflichtenheft erstellen"},{"$f":"IF(Vorgangsliste!$C15<>0,Vorgangsliste!$C15,\"\")","v":8},{"$f":"IF(Vorgangsliste!$D15<>0,Vorgangsliste!$D15,\"\")","v":"12,13"}]
[{"$f":"IF(Vorgangsliste!$B16<>0,Vorgangsliste!$B16,\"\")","v":"Papierprototyp entwerfen"},{"$f":"IF(Vorgangsliste!$C16<>0,Vorgangsliste!$C16,\"\")","v":6},{"$f":"IF(Vorgangsliste!$D16<>0,Vorgangsliste!$D16,\"\")","v":"14"}]
[{"$f":"IF(Vorgangsliste!$B17<>0,Vorgangsliste!$B17,\"\")","v":"CI/CD Pläne aufsetzen"},{"$f":"IF(Vorgangsliste!$C17<>0,Vorgangsliste!$C17,\"\")","v":4},{"$f":"IF(Vorgangsliste!$D17<>0,Vorgangsliste!$D17,\"\")","v":"9"}]
[{"$f":"IF(Vorgangsliste!$B18<>0,Vorgangsliste!$B18,\"\")","v":"Datenbank aufsetzen"},{"$f":"IF(Vorgangsliste!$C18<>0,Vorgangsliste!$C18,\"\")","v":2},{"$f":"IF(Vorgangsliste!$D18<>0,Vorgangsliste!$D18,\"\")","v":"12"}]
[{"$f":"IF(Vorgangsliste!$B19<>0,Vorgangsliste!$B19,\"\")","v":"Implementation vom Frontend"},{"$f":"IF(Vorgangsliste!$C19<>0,Vorgangsliste!$C19,\"\")","v":12},{"$f":"IF(Vorgangsliste!$D19<>0,Vorgangsliste!$D19,\"\")","v":"15,16"}]
[{"$f":"IF(Vorgangsliste!$B20<>0,Vorgangsliste!$B20,\"\")","v":"Implementation vom Backend"},{"$f":"IF(Vorgangsliste!$C20<>0,Vorgangsliste!$C20,\"\")","v":8},{"$f":"IF(Vorgangsliste!$D20<>0,Vorgangsliste!$D20,\"\")","v":"17,18"}]
[{"$f":"IF(Vorgangsliste!$B21<>0,Vorgangsliste!$B21,\"\")","v":"Systemtests"},{"$f":"IF(Vorgangsliste!$C21<>0,Vorgangsliste!$C21,\"\")","v":4},{"$f":"IF(Vorgangsliste!$D21<>0,Vorgangsliste!$D21,\"\")","v":"19"}]
[{"$f":"IF(Vorgangsliste!$B22<>0,Vorgangsliste!$B22,\"\")","v":"Codereview"},{"$f":"IF(Vorgangsliste!$C22<>0,Vorgangsliste!$C22,\"\")","v":2},{"$f":"IF(Vorgangsliste!$D22<>0,Vorgangsliste!$D22,\"\")","v":"20"}]
[{"$f":"IF(Vorgangsliste!$B23<>0,Vorgangsliste!$B23,\"\")","v":"Abnahme des Prototyps und Quellcodes"},{"$f":"IF(Vorgangsliste!$C23<>0,Vorgangsliste!$C23,\"\")","v":0.5},{"$f":"IF(Vorgangsliste!$D23<>0,Vorgangsliste!$D23,\"\")","v":"21"}]
[{"$f":"IF(Vorgangsliste!$B24<>0,Vorgangsliste!$B24,\"\")","v":"Prozessorientierte Präsentation entwerfen"},{"$f":"IF(Vorgangsliste!$C24<>0,Vorgangsliste!$C24,\"\")","v":5},{"$f":"IF(Vorgangsliste!$D24<>0,Vorgangsliste!$D24,\"\")","v":"22"}]
[{"$f":"IF(Vorgangsliste!$B25<>0,Vorgangsliste!$B25,\"\")","v":"Präsentation halten"},{"$f":"IF(Vorgangsliste!$C25<>0,Vorgangsliste!$C25,\"\")","v":0.5},{"$f":"IF(Vorgangsliste!$D25<>0,Vorgangsliste!$D25,\"\")","v":"23"}]
[{"$f":"IF(Vorgangsliste!$B26<>0,Vorgangsliste!$B26,\"\")","v":""},{"$f":"IF(Vorgangsliste!$C26<>0,Vorgangsliste!$C26,\"\")","v":""},{"$f":"IF(Vorgangsliste!$D26<>0,Vorgangsliste!$D26,\"\")","v":""}]

{"sheet":"Vorgangsliste","index":1,"n_rows":26,"n_cols":7,"rows_kept":26,"cut":false,"hidden":false,"merged":[]}
["Vorgang Nr.","Vorgangsname","Dauer","Vorgänger",null,"Projektdauer:",120]
[1,"Kick Off",1,"-",null,"geschätzte Projektdauer:",{"$f":"SUM(C3:C27)","v":92}]
[2,"Kommunikationsplan erstellen",1,1,null,"Puffer:",5]
[3,"Ziele setzen",2,1]
[4,"Rollen verteilen",1,1]
[5,"Mindmap erstellen",2,1]
[6,"Fragenkatalog erstellen",6,"2,3,4,5"]
[7,"Infrastrukturanforderungen definieren",1,"2,3,4,5"]
[8,"Zeitplan erstellen",12,"2,3,4"]
[9,"Analyse der zuverwendeten Techniken",1,"3,5,7"]
[10,"Schnittstellen definieren",4,5.7]
[11,"Resourceplan erstellen",2,8]
[12,"ERD erstellen",6,"6,10"]
[13,"Use-Case erstellen",2,"12"]
[14,"Pflichtenheft erstellen",8,"12,13"]
[15,"Papierprototyp entwerfen",6,"14"]
[16,"CI/CD Pläne aufsetzen",4,"9"]
[17,"Datenbank aufsetzen",2,"12"]
[18,"Implementation vom Frontend",12,"15,16"]
[19,"Implementation vom Backend",8,"17,18"]
[20,"Systemtests",4,"19"]
[21,"Codereview",2,"20"]
[22,"Abnahme des Prototyps und Quellcodes",0.5,"21"]
[23,"Prozessorientierte Präsentation entwerfen",5,"22"]
[24,"Präsentation halten",0.5,"23"]
[25]